fUST/lending_fUST_20250312
["ID","MTS","AMOUNT","RATE_DAILY","PERIOD"]
[355925791,1741716708380,-500.0,0.00023561,2]
[355925792,1741716708390,-500.0,0.00023561,2]
[355925793,1741716708400,-1771.79,0.00023561,2]
[355925794,1741716708409,-2594.12,0.00023561,2]
[355925795,1741716708419,-500.0,0.00023561,2]
[355925796,1741716708428,-500.0,0.00023561,2]
[355925797,1741716708438,-564.98,0.00023561,2]
[355925798,1741716708448,-741.15,0.00023561,2]
[355925799,1741716708458,-514.01,0.00023561,2]
[355925800,1741716708468,-500.0,0.00023561,2]
[355925801,1741716708478,-500.0,0.00023561,2]
[355925802,1741716708488,-520.01174161,0.00023561,2]
[355925803,1741716708497,-500.0,0.00023561,2]
[355925804,1741716708508,-500.0,0.00023561,2]
[355925805,1741716708517,-773.02,0.00023561,2]
[355925806,1741716708527,-500.0,0.00023561,2]
[355925807,1741716708537,-783.0,0.00023561,2]
[355925808,1741716708547,-500.0,0.00023561,2]
[355925809,1741716708557,-500.0,0.00023561,2]
[355925810,1741716708567,-500.0,0.00023561,2]
[355925811,1741716708577,-1890.4,0.00023561,2]
[355925812,1741716708587,-500.0,0.00023561,2]
[355925813,1741716708597,-500.0,0.00023561,2]
[355925814,1741716708607,-669.95,0.00023561,2]
[355925815,1741716708618,-500.0,0.00023561,2]
[355925816,1741716708628,-647.88,0.00023561,2]
[355925817,1741716708639,-1680.4,0.00023561,2]
[355925818,1741716708649,-500.0,0.00023561,2]
[355925819,1741716708659,-523.3,0.00023561,2]
[355925820,1741716708669,-1121.75,0.00023561,2]
[355925821,1741716708678,-500.0,0.00023561,2]
[355925822,1741716708688,-647.83,0.00023561,2]
[355925823,1741716708698,-500.0,0.00023561,2]
[355925824,1741716708707,-1614.37,0.00023561,2]
[355925825,1741716708717,-500.0,0.00023561,2]
[355925826,1741716708727,-500.0,0.00023561,2]
[355925827,1741716708736,-607.02,0.00023561,2]
[355925828,1741716708746,-800.76,0.00023561,2]
[355925829,1741716708755,-1280.44,0.00023561,2]
[355925830,1741716708766,-500.0,0.00023561,2]
[355925831,1741716708776,-500.0,0.00023561,2]
[355925832,1741716708785,-555.5,0.00023561,2]
[355925833,1741716708795,-500.0,0.00023561,2]
[355925834,1741716708807,-555.68065511,0.00023561,2]
[355925835,1741716708817,-500.0,0.00023561,2]
[355925836,1741716708827,-500.0,0.00023561,2]
[355925837,1741716708837,-721.26,0.00023561,2]
[355925838,1741716708847,-1615.29,0.00023561,2]
[355925839,1741716708856,-500.0,0.00023561,2]
[355925840,1741716708866,-554.96870575,0.00023561,2]
[355925841,1741716708876,-500.0,0.00023561,2]
[355925842,1741716708885,-500.0,0.00023561,2]
[355925843,1741716708895,-425.69629456,0.00023561,2]
[355925844,1741716708904,-500.0,0.00023561,2]
[355925845,1741716708914,-500.0,0.00023561,2]
[355925846,1741716708924,-1063.8,0.00023561,2]
[355925847,1741716708933,-993.16,0.00023561,2]
[355925848,1741716708942,-500.0,0.00023561,2]
[355925849,1741716708952,-2377.08,0.00023561,2]
[355925850,1741716708961,-500.0,0.00023561,2]
[355925851,1741716708971,-500.0,0.00023561,2]
[355925852,1741716708980,-500.0,0.00023561,2]
[355925853,1741716708990,-1689.79,0.00023561,2]
[355925854,1741716708999,-1182.74,0.00023561,2]
[355925855,1741716709008,-500.0,0.00023561,2]
[355925856,1741716709018,-500.0,0.00023561,2]
[355925857,1741716709027,-500.0,0.00023561,2]
[355925858,1741716709038,-500.0,0.00023561,2]
[355925859,1741716709051,-2662.49,0.00023561,2]
[355925860,1741716709063,-1204.27,0.00023561,2]
[355925861,1741716709073,-760.44,0.00023561,2]
[355925862,1741716709083,-240.23851337,0.00023561,2]
[355925863,1741716709093,-717.54,0.00023561,2]
[355925864,1741716709103,-500.0,0.00023561,2]
[355925865,1741716709113,-500.0,0.00023561,2]
[355925866,1741716709123,-500.0,0.00023561,2]
[355925867,1741716709134,-500.0,0.00023561,2]
[355925868,1741716709144,-1467.71,0.00023561,2]
[355925869,1741716709153,-500.0,0.00023561,2]
[355925870,1741716709163,-2537.49,0.00023561,2]
[355925871,1741716709173,-500.0,0.00023561,2]
[355925872,1741716709183,-430.86543128,0.00023561,2]
[355925873,1741716709193,-500.0,0.00023561,2]
[355925874,1741716709203,-500.0,0.00023561,2]
[355925875,1741716709212,-500.0,0.00023561,2]
[355925876,1741716709223,-1701.43,0.00023561,2]
[355925877,1741716709232,-500.0,0.00023561,2]
[355925878,1741716709242,-500.0,0.00023561,2]
[355925879,1741716709252,-1155.99,0.00023561,2]
[355925880,1741716709261,-500.0,0.00023561,2]
[355925881,1741716709271,-500.0,0.00023561,2]
[355925882,1741716709281,-644.13,0.00023561,2]
[355925883,1741716709290,-500.0,0.00023561,2]
[355925884,1741716709301,-834.21,0.00023561,2]
[355925885,1741716709312,-798.51,0.00023561,2]
[355925886,1741716709324,-500.0,0.00023561,2]
[355925887,1741716709334,-500.0,0.00023561,2]
[355925888,1741716709344,-908.5,0.00023561,2]
[355925889,1741716709354,-500.0,0.00023561,2]
[355925890,1741716709363,-500.0,0.00023561,2]
[355925891,1741716709373,-572.05,0.00023561,2]
[355925892,1741716709382,-500.0,0.00023561,2]
[355925893,1741716709392,-238.70755513,0.00023561,2]
[355925894,1741716709401,-1740.21,0.00023561,2]
[355925895,1741716709411,-1291.37,0.00023561,2]
[355925896,1741716709421,-500.0,0.00023561,2]
[355925897,1741716709431,-1766.21,0.00023561,2]
[355925898,1741716709440,-682.17,0.00023561,2]
[355925899,1741716709450,-500.0,0.00023561,2]
[355925900,1741716709459,-893.83,0.00023561,2]
[355925901,1741716709469,-564.596485,0.00023561,2]
[355925902,1741716709478,-500.0,0.00023561,2]
[355925903,1741716709487,-500.0,0.00023561,2]
[355925904,1741716709497,-518.29433402,0.00023561,2]
[355925905,1741716709506,-500.0,0.00023561,2]
[355925906,1741716709516,-500.0,0.00023561,2]
[355925907,1741716709526,-500.0,0.00023561,2]
[355925908,1741716709536,-2321.3,0.00023561,2]
[355925909,1741716709545,-500.0,0.00023561,2]
[355925910,1741716709557,-500.0,0.00023561,2]
[355925911,1741716709566,-1549.95,0.00023561,2]
[355925912,1741716709576,-2086.15,0.00023561,2]
[355925913,1741716709585,-500.0,0.00023561,2]
[355925914,1741716709596,-500.0,0.00023561,2]
[355925915,1741716709605,-1804.17,0.00023561,2]
[355925916,1741716709852,-931.4,0.00023561,2]
[355925917,1741716709862,-500.0,0.00023561,2]
[355925918,1741716709872,-500.0,0.00023561,2]
[355925919,1741716709882,-1203.57,0.00023561,2]
[355925920,1741716709891,-936.91,0.00023561,2]
[355925921,1741716709900,-500.0,0.00023561,2]
[355925922,1741716709910,-1955.81,0.00023561,2]
[355925923,1741716709919,-536.70835015,0.00023561,2]
[355925924,1741716709929,-1167.97,0.00023561,2]
[355925925,1741716709938,-500.0,0.00023561,2]
[355925926,1741716709947,-500.0,0.00023561,2]
[355925927,1741716709957,-500.0,0.00023561,2]
[355925928,1741716709966,-500.0,0.00023561,2]
[355925929,1741716709976,-3441.63,0.00023561,2]
[355925930,1741716709985,-500.0,0.00023561,2]
[355925931,1741716709994,-500.0,0.00023561,2]
[355925932,1741716710004,-500.0,0.00023561,2]
[355925933,1741716710013,-500.0,0.00023561,2]
[355925934,1741716710022,-500.0,0.00023561,2]
[355925935,1741716710034,-1264.65,0.00023561,2]
[355925936,1741716710045,-1028.23,0.00023561,2]
[355925937,1741716710054,-1565.71,0.00023561,2]
[355925938,1741716710065,-500.0,0.00023561,2]
[355925939,1741716710074,-500.0,0.00023561,2]
[355925940,1741716710085,-500.0,0.00023561,2]
[355925941,1741716710095,-500.0,0.00023561,2]
[355925942,1741716710105,-1625.43,0.00023561,2]
[355925943,1741716710114,-1803.2,0.00023561,2]
[355925944,1741716710125,-500.0,0.00023561,2]
[355925945,1741716710139,-519.28851475,0.00023561,2]
[355925946,1741716710148,-500.0,0.00023561,2]
[355925947,1741716710158,-500.0,0.00023561,2]
[355925948,1741716710168,-500.0,0.00023561,2]
[355925949,1741716710178,-500.0,0.00023561,2]
[355925950,1741716710187,-500.0,0.00023561,2]
[355925951,1741716710198,-500.0,0.00023561,2]
[355925952,1741716710208,-1045.75,0.00023561,2]
[355925953,1741716710218,-500.0,0.00023561,2]
[355925954,1741716710227,-500.0,0.00023561,2]
[355925955,1741716710237,-791.16,0.00023561,2]
[355925956,1741716710247,-500.0,0.00023561,2]
[355925957,1741716710257,-500.0,0.00023561,2]
[355925958,1741716710266,-500.0,0.00023561,2]
[355925959,1741716710275,-337.18692763,0.00023561,2]
[355925960,1741716710285,-500.0,0.00023561,2]
[355925961,1741716710295,-500.0,0.00023561,2]
[355925962,1741716710307,-500.0,0.00023561,2]
[355925963,1741716710318,-500.0,0.00023561,2]
[355925964,1741716710328,-500.0,0.00023561,2]
[355925965,1741716710338,-500.0,0.00023561,2]
[355925966,1741716710348,-500.0,0.00023561,2]
[355925967,1741716710358,-500.0,0.00023561,2]
[355925968,1741716710368,-500.0,0.00023561,2]
[355925969,1741716710377,-500.0,0.00023561,2]
[355925970,1741716710387,-500.0,0.00023561,2]
[355925971,1741716710397,-500.0,0.00023561,2]
[355925972,1741716710406,-500.0,0.00023561,2]
[355925973,1741716710416,-500.0,0.00023561,2]
[355925974,1741716710425,-500.0,0.00023561,2]
[355925975,1741716710435,-500.0,0.00023561,2]
[355925976,1741716710444,-500.0,0.00023561,2]
[355925977,1741716710454,-500.0,0.00023561,2]
[355925978,1741716710464,-500.0,0.00023561,2]
[355925979,1741716710474,-500.0,0.00023561,2]
[355925980,1741716710483,-1070.64,0.00023561,2]
[355925981,1741716710492,-939.85,0.00023561,2]
[355925982,1741716710502,-500.0,0.00023561,2]
[355925983,1741716710511,-500.0,0.00023561,2]
[355925984,1741716710520,-700.06,0.00023561,2]
[355925985,1741716710530,-500.0,0.00023561,2]
[355925986,1741716710539,-500.0,0.00023561,2]
[355925987,1741716710548,-500.0,0.00023561,2]
[355925988,1741716710560,-500.0,0.00023561,2]
[355925989,1741716710569,-500.0,0.00023561,2]
[355925990,1741716710579,-500.0,0.00023561,2]
[355925991,1741716710589,-914.13,0.00023561,2]
[355925992,1741716710599,-607.57573895,0.00023561,2]
[355925993,1741716710610,-1543.09,0.00023561,2]
[355925994,1741716710620,-1087.78,0.00023561,2]
[355925995,1741716710629,-500.0,0.00023561,2]
[355925996,1741716710639,-500.0,0.00023561,2]
[355925997,1741716710649,-500.0,0.00023561,2]
[355925998,1741716710659,-525.06,0.00023561,2]
[355925999,1741716710669,-3025.57,0.00023561,2]
[355926000,1741716710679,-500.0,0.00023561,2]
[355926001,1741716710688,-500.0,0.00023561,2]
[355926002,1741716710697,-500.0,0.00023561,2]
[355926003,1741716710707,-1013.34,0.00023561,2]
[355926004,1741716710717,-500.0,0.00023561,2]
[355926005,1741716710726,-500.0,0.00023561,2]
[355926006,1741716710735,-500.0,0.00023561,2]
[355926007,1741716710745,-500.0,0.00023561,2]
[355926008,1741716710755,-2686.03,0.00023561,2]
[355926009,1741716710764,-500.0,0.00023561,2]
[355926010,1741716710774,-1595.33,0.00023561,2]
[355926011,1741716710784,-500.0,0.00023561,2]
[355926012,1741716710793,-500.0,0.00023561,2]
[355926013,1741716710803,-500.0,0.00023561,2]
[355926014,1741716710816,-2451.3,0.00023561,2]
[355926015,1741716710836,-1447.92,0.00023561,2]
[355926016,1741716710857,-500.0,0.00023561,2]
[355926017,1741716710871,-500.0,0.00023561,2]
[355926018,1741716710882,-500.0,0.00023561,2]
[355926019,1741716710891,-2298.88,0.00023561,2]
[355926020,1741716710902,-500.0,0.00023561,2]
[355926021,1741716710914,-500.0,0.00023561,2]
[355926022,1741716710923,-500.0,0.00023561,2]
[355926023,1741716710934,-2808.13,0.00023561,2]
[355926024,1741716710943,-500.0,0.00023561,2]
[355926025,1741716710954,-200.0,0.00023561,2]
[355926026,1741716710964,-500.0,0.00023561,2]
[355926027,1741716710974,-500.0,0.00023561,2]
[355926028,1741716710984,-500.0,0.00023561,2]
[355926029,1741716710993,-2473.59,0.00023561,2]
[355926030,1741716711003,-500.0,0.00023561,2]
[355926031,1741716711012,-500.0,0.00023561,2]
[355926032,1741716711023,-500.0,0.00023561,2]
[355926033,1741716711033,-500.0,0.00023561,2]
[355926034,1741716711045,-500.0,0.00023561,2]
[355926035,1741716711055,-500.0,0.00023561,2]
[355926036,1741716711064,-500.0,0.00023561,2]
[355926037,1741716711074,-500.0,0.00023561,2]
[355926038,1741716711085,-780.35,0.00023561,2]
[355926039,1741716711094,-531.79660229,0.00023561,2]
[355926040,1741716711104,-2284.96,0.00023561,2]
[355926041,1741716711114,-1184.9,0.00023561,2]
[355926042,1741716711125,-500.0,0.00023561,2]
[355926043,1741716711134,-1614.31,0.00023561,2]
[355926044,1741716711144,-500.0,0.00023561,2]
[355926045,1741716711154,-896.04,0.00023561,2]
[355926046,1741716711164,-500.0,0.00023561,2]
[355926047,1741716711174,-825.42,0.00023561,2]
[355926048,1741716711184,-500.0,0.00023561,2]
[355926049,1741716711194,-612.17,0.00023561,2]
[355926050,1741716711204,-500.0,0.00023561,2]
[355926051,1741716711214,-500.0,0.00023561,2]
[355926052,1741716711224,-1857.45,0.00023561,2]
[355926053,1741716711233,-500.0,0.00023561,2]
[355926054,1741716711243,-1429.9,0.00023561,2]
[355926055,1741716711253,-9645.49,0.00023561,2]
[355926056,1741716711263,-500.0,0.00023561,2]
[355926057,1741716711274,-899.98,0.00023561,2]
[355926058,1741716711284,-500.0,0.00023561,2]
[355926059,1741716711294,-1000.0,0.00023561,2]
[355926060,1741716711304,-500.0,0.00023561,2]
[355926061,1741716711315,-7102.33,0.00023561,2]
[355926062,1741716711325,-500.0,0.00023561,2]
[355926063,1741716711335,-500.0,0.00023561,2]
[355926064,1741716711345,-500.0,0.00023561,2]
[355926065,1741716711355,-11976.4,0.00023561,2]
[355926066,1741716711365,-1284.87,0.00023561,2]
[355926067,1741716711375,-855.17,0.00023561,2]
[355926068,1741716711385,-500.0,0.00023561,2]
[355926069,1741716711395,-500.0,0.00023561,2]
[355926070,1741716711404,-500.0,0.00023561,2]
[355926071,1741716711414,-500.0,0.00023561,2]
[355926072,1741716711423,-23367.44,0.00023561,2]
[355926073,1741716711433,-500.0,0.00023561,2]
[355926074,1741716711442,-500.0,0.00023561,2]
[355926075,1741716711451,-500.0,0.00023561,2]
[355926076,1741716711462,-669.93,0.00023561,2]
[355926077,1741716711472,-500.0,0.00023561,2]
[355926078,1741716711482,-500.0,0.00023561,2]
[355926079,1741716711492,-500.0,0.00023561,2]
[355926080,1741716711501,-1907.14,0.00023561,2]
[355926081,1741716711511,-500.0,0.00023561,2]
[355926082,1741716711520,-500.0,0.00023561,2]
[355926083,1741716711530,-2813.74,0.00023561,2]
[355926084,1741716711540,-500.0,0.00023561,2]
[355926085,1741716711550,-562.82,0.00023561,2]
[355926086,1741716711562,-500.0,0.00023561,2]
[355926087,1741716711572,-1222.25,0.00023561,2]
[355926088,1741716711582,-514.05,0.00023561,2]
[355926089,1741716711592,-2182.16,0.00023561,2]
[355926090,1741716711602,-500.0,0.00023561,2]
[355926091,1741716711612,-500.0,0.00023561,2]
[355926092,1741716711622,-573.01,0.00023561,2]
[355926093,1741716711631,-500.0,0.00023561,2]
[355926094,1741716711641,-4470.27,0.00023561,2]
[355926095,1741716711651,-1342.73,0.00023561,2]
[355926096,1741716711661,-500.0,0.00023561,2]
[355926097,1741716711671,-914.18,0.00023561,2]
[355926098,1741716711680,-500.0,0.00023561,2]
[355926099,1741716711689,-500.0,0.00023561,2]
[355926100,1741716711699,-578.89,0.00023561,2]
[355926101,1741716711708,-500.0,0.00023561,2]
[355926102,1741716711717,-500.0,0.00023561,2]
[355926103,1741716711727,-500.0,0.00023561,2]
[355926104,1741716711736,-989.87,0.00023561,2]
[355926105,1741716711745,-934.23,0.00023561,2]
[355926106,1741716711755,-885.21,0.00023561,2]
[355926107,1741716711765,-2800.07,0.00023561,2]
[355926108,1741716711774,-1444.17,0.00023561,2]
[355926109,1741716711784,-4730.12,0.00023561,2]
[355926110,1741716711794,-500.0,0.00023561,2]
[355926111,1741716711803,-500.0,0.00023561,2]
[355926112,1741716711815,-3755.9,0.00023561,2]
[355926113,1741716711824,-500.0,0.00023561,2]
[355926114,1741716711834,-500.0,0.00023561,2]
[355926115,1741716711844,-9446.84,0.00023561,2]
[355926116,1741716711854,-500.0,0.00023561,2]
[355926117,1741716711864,-2814.21,0.00023561,2]
[355926118,1741716711874,-3691.0,0.00023561,2]
[355926119,1741716711884,-1202.86,0.00023561,2]
[355926120,1741716711894,-500.0,0.00023561,2]
[355926121,1741716711904,-587.88,0.00023561,2]
[355926122,1741716711914,-500.0,0.00023561,2]
[355926123,1741716711924,-869.52,0.00023561,2]
[355926124,1741716711933,-500.0,0.00023561,2]
[355926125,1741716711942,-500.0,0.00023561,2]
[355926126,1741716711952,-500.0,0.00023561,2]
[355926127,1741716711962,-3579.07,0.00023561,2]
[355926128,1741716711972,-321.36863272,0.00023561,2]
[355926129,1741716711981,-299174.99,0.00023561,2]
[355926130,1741716711991,-2945.67,0.00023561,2]
[355926131,1741716712000,-500.0,0.00023561,2]
[355926132,1741716712010,-880.17,0.00023561,2]
[355926133,1741716712020,-500.0,0.00023561,2]
[355926134,1741716712029,-2983.87,0.00023561,2]
[355926135,1741716712039,-500.0,0.00023561,2]
[355926136,1741716712053,-500.0,0.00023561,2]
[355926137,1741716712064,-11349.89,0.00023561,2]
[355926138,1741716712073,-500.0,0.00023561,2]
[355926139,1741716712083,-500.0,0.00023561,2]
[355926140,1741716712092,-500.0,0.00023561,2]
[355926141,1741716712102,-500.0,0.00023561,2]
[355926142,1741716712111,-811.32,0.00023561,2]
[355926143,1741716712123,-500.0,0.00023561,2]
[355926144,1741716712132,-500.0,0.00023561,2]
[355926145,1741716712142,-500.0,0.00023561,2]
[355926146,1741716712152,-6411.78,0.00023561,2]
[355926147,1741716712161,-1407.74,0.00023561,2]
[355926148,1741716712171,-500.0,0.00023561,2]
[355926149,1741716712180,-500.0,0.00023561,2]
[355926150,1741716712190,-2234.33,0.00023561,2]
[355926151,1741716712200,-1914.64,0.00023561,2]
[355926152,1741716712209,-500.0,0.00023561,2]
[355926153,1741716712219,-506.92639116,0.00023561,2]
[355926154,1741716712229,-500.0,0.00023561,2]
[355926155,1741716712239,-516.47,0.00023561,2]
[355926156,1741716712248,-1299.12,0.00023561,2]
[355926157,1741716712258,-2072.12,0.00023561,2]
[355926158,1741716712267,-834.53,0.00023561,2]
[355926159,1741716712277,-3763.62,0.00023561,2]
[355926160,1741716712286,-500.0,0.00023561,2]
[355926161,1741716712296,-551.18,0.00023561,2]
[355926162,1741716712305,-3522.52,0.00023561,2]
[355926163,1741716712315,-500.0,0.00023561,2]
[355926164,1741716712325,-500.0,0.00023561,2]
[355926165,1741716712334,-658.55,0.00023561,2]
[355926166,1741716712343,-500.0,0.00023561,2]
[355926167,1741716712352,-500.0,0.00023561,2]
[355926168,1741716712362,-500.0,0.00023561,2]
[355926169,1741716712371,-583.5,0.00023561,2]
[355926170,1741716712381,-1515.05,0.00023561,2]
[355926171,1741716712390,-13694.52,0.00023561,2]
[355926172,1741716712399,-500.0,0.00023561,2]
[355926173,1741716712409,-2033.78,0.00023561,2]
[355926174,1741716712418,-2419.19,0.00023561,2]
[355926175,1741716712652,-1260.46,0.00023561,2]
[355926176,1741716712662,-500.0,0.00023561,2]
[355926177,1741716712671,-1096.01,0.00023561,7]
[355926178,1741716712681,-500.0,0.00023561,2]
[355926179,1741716712691,-500.0,0.00023561,2]
[355926180,1741716712700,-947.72,0.00023561,2]
[355926181,1741716712710,-567.06,0.00023561,2]
[355926182,1741716712720,-967.47,0.00023561,2]
[355926183,1741716712731,-1213.75,0.00023561,2]
[355926184,1741716712740,-2759.01,0.00023561,2]
[355926185,1741716712750,-1574.32,0.00023561,2]
[355926186,1741716712760,-500.0,0.00023561,2]
[355926187,1741716712770,-500.0,0.00023561,2]
[355926188,1741716712780,-500.0,0.00023561,2]
[355926189,1741716712790,-1492.0,0.00023561,2]
[355926190,1741716712800,-500.0,0.00023561,2]
[355926191,1741716712810,-2494.97,0.00023561,2]
[355926192,1741716712820,-500.0,0.00023561,2]
[355926193,1741716712829,-10869.8,0.00023561,2]
[355926194,1741716712838,-500.0,0.00023561,2]
[355926195,1741716712847,-500.0,0.00023561,2]
[355926196,1741716712857,-724.88,0.00023561,2]
[355926197,1741716712866,-500.0,0.00023561,2]
[355926198,1741716712875,-500.0,0.00023561,2]
[355926199,1741716712884,-500.0,0.00023561,2]
[355926200,1741716712893,-537.03,0.00023561,2]
[355926201,1741716712903,-500.0,0.00023561,2]
[355926202,1741716712912,-500.0,0.00023561,2]
[355926203,1741716712922,-751.32,0.00023561,2]
[355926204,1741716712932,-1067.93,0.00023561,2]
[355926205,1741716712941,-500.0,0.00023561,2]
[355926206,1741716712951,-500.0,0.00023561,2]
[355926207,1741716712960,-725.1,0.00023561,2]
[355926208,1741716712970,-500.0,0.00023561,2]
[355926209,1741716712979,-5830.62,0.00023561,2]
[355926210,1741716712989,-500.0,0.00023561,2]
[355926211,1741716712998,-13663.82,0.00023561,2]
[355926212,1741716713008,-8586.74,0.00023561,2]
[355926213,1741716713018,-500.0,0.00023561,2]
[355926214,1741716713028,-500.0,0.00023561,2]
[355926215,1741716713041,-500.0,0.00023561,2]
[355926216,1741716713051,-500.0,0.00023561,2]
[355926217,1741716713060,-1052.85,0.00023561,2]
[355926218,1741716713070,-710.74,0.00023561,2]
[355926219,1741716713079,-500.0,0.00023561,2]
[355926220,1741716713090,-1490.39,0.00023561,2]
[355926221,1741716713099,-562.29,0.00023561,2]
[355926222,1741716713109,-2664.47,0.00023561,2]
[355926223,1741716713118,-630.72734018,0.00023561,2]
[355926224,1741716713128,-760.33,0.00023561,2]
[355926225,1741716713137,-500.0,0.00023561,2]
[355926226,1741716713147,-9046.62,0.00023561,2]
[355926227,1741716713156,-500.0,0.00023561,2]
[355926228,1741716713165,-274.6093497,0.00023561,2]
[355926229,1741716713175,-683.04,0.00023561,2]
[355926230,1741716713185,-3131.63,0.00023561,2]
[355926231,1741716713195,-1176.59,0.00023561,2]
[355926232,1741716713204,-1428.31,0.00023561,2]
[355926233,1741716713214,-1006.02,0.00023561,2]
[355926234,1741716713224,-500.0,0.00023561,2]
[355926235,1741716713234,-1000.0,0.00023561,2]
[355926236,1741716713244,-176.32128542,0.00023561,2]
[355926237,1741716713254,-1287.74,0.00023561,2]
[355926238,1741716713264,-1569.12,0.00023561,2]
[355926239,1741716713274,-2049.22,0.00023561,2]
[355926240,1741716713284,-500.0,0.00023561,2]
[355926241,1741716713294,-500.0,0.00023561,2]
[355926242,1741716713304,-1105.59,0.00023561,2]
[355926243,1741716713314,-1986.41,0.00023561,2]
[355926244,1741716713324,-633.94,0.00023561,2]
[355926245,1741716713334,-701.01,0.00023561,2]
[355926246,1741716713344,-500.0,0.00023561,2]
[355926247,1741716713354,-1151.53,0.00023561,2]
[355926248,1741716713363,-500.0,0.00023561,2]
[355926249,1741716713374,-1137.57,0.00023561,2]
[355926250,1741716713383,-500.0,0.00023561,2]
[355926251,1741716713394,-500.0,0.00023561,2]
[355926252,1741716713404,-2208.74,0.00023561,2]
[355926253,1741716713413,-500.0,0.00023561,2]
[355926254,1741716713423,-500.0,0.00023561,2]
[355926255,1741716713433,-3979.18,0.00023561,2]
[355926256,1741716713442,-779.1,0.00023561,2]
[355926257,1741716713452,-500.0,0.00023561,2]
[355926258,1741716713461,-16462.07,0.00023561,2]
[355926259,1741716713471,-690.32,0.00023561,2]
[355926260,1741716713480,-500.0,0.00023561,2]
[355926261,1741716713490,-277.15114924,0.00023589,2]
[355926262,1741716713499,-519.3187627,0.00023629,2]
[355926263,1741716713509,-277.15114924,0.00023699,2]
[355926264,1741716713519,-500.0,0.0002371,2]
[355926265,1741716713528,-1540.794464,0.00023805,2]
[355926266,1741716713538,-277.15114924,0.00023808,2]
[355926267,1741716713547,-9227.74,0.00023809,9]
[355926268,1741716713556,-1000.0,0.00023821,2]
[355926269,1741716713567,-500.0,0.00023835,2]
[355926270,1741716713576,-584.93813728,0.00023835,2]
[355926271,1741716713585,-1340.89,0.00023835,2]
[355926272,1741716713595,-584.74135456,0.00023835,2]
[355926273,1741716713604,-553.47207043,0.00023835,2]
[355926274,1741716713614,-1201.45,0.00023835,2]
[355926275,1741716713624,-590.28,0.00023835,2]
[355926276,1741716713634,-500.0,0.00023835,2]
[355926277,1741716713643,-500.0,0.00023835,2]
[355926278,1741716713653,-500.0,0.00023835,2]
[355926279,1741716713662,-500.0,0.00023835,2]
[355926280,1741716713672,-500.0,0.00023835,2]
[355926281,1741716713682,-500.0,0.00023835,2]
[355926282,1741716713691,-513.85,0.00023835,2]
[355926283,1741716713701,-1074.73,0.00023835,2]
[355926284,1741716713710,-500.0,0.00023835,2]
[355926285,1741716713720,-500.0,0.00023835,2]
[355926286,1741716713730,-500.0,0.00023835,2]
[355926287,1741716713743,-500.0,0.00023835,2]
[355926288,1741716713753,-500.0,0.00023835,2]
[355926289,1741716713763,-500.0,0.00023835,2]
[355926290,1741716713772,-581.53,0.00023835,2]